bitfinex-derivatives/quotes_BNBF0:USTF0_20260114
["timestamp","ask_amount","ask_price","bid_price","bid_amount"]
[1768395951396,0.7651504,933.07,932.11,0.18649118]
[1768395951592,0.7651504,933.06,932.11,0.18649118]
[1768395951794,0.7651504,933.05,932.11,0.18649118]
[1768395951994,0.7651504,933.04,932.11,0.18649118]
[1768395952197,0.7651504,933.03,932.11,0.18649118]
[1768395952395,0.7651504,933.02,932.11,0.18649118]
[1768395952599,0.7651504,933.01,932.11,0.18649118]
[1768395952897,0.7651504,933.0,932.11,0.18649118]
[1768395953095,0.7651504,932.99,932.11,0.18649118]
[1768395953298,0.7651504,932.98,932.11,0.18649118]
[1768395953500,0.7651504,932.97,932.11,0.18649118]
[1768395953800,0.7651504,932.96,932.11,0.18649118]
[1768395954095,0.7651504,932.95,932.11,0.18649118]
[1768395954300,0.7651504,932.94,932.11,0.18649118]
[1768395954596,0.7651504,932.93,932.11,0.18649118]
[1768395954799,0.7651504,932.92,932.11,0.18649118]
[1768395954996,0.7651504,932.91,932.11,0.18649118]
[1768395955196,0.7651504,932.9,932.11,0.18649118]
[1768395955397,0.915,933.05,932.11,0.18649118]
[1768395955596,0.76578569,933.04,932.11,0.18649118]
[1768395955797,0.76578569,933.03,932.11,0.18649118]
[1768395956000,0.76578569,933.02,932.11,0.18649118]
[1768395956300,0.76578569,933.01,932.11,0.18649118]
[1768395956596,0.76578569,933.0,932.11,0.18649118]
[1768395956800,0.76578569,932.99,932.11,0.18649118]
[1768395956997,0.76578569,932.98,932.11,0.18649118]
[1768395957297,0.915,933.05,932.11,0.18649118]
[1768395957298,0.76578569,932.97,932.11,0.18649118]
[1768395957499,0.76578569,932.96,932.11,0.18649118]
[1768395957698,0.76578569,932.95,932.11,0.18649118]
[1768395957900,0.76578569,932.94,932.11,0.18649118]
[1768395958101,0.76578569,932.93,932.11,0.18649118]
[1768395958298,0.76578569,932.92,932.11,0.18649118]
[1768395958498,0.76578569,932.91,932.11,0.18649118]
[1768395958700,0.76578569,932.9,932.11,0.18649118]
[1768395958900,0.76578569,932.89,932.11,0.18649118]
[1768395959202,0.915,933.05,932.11,0.18649118]
[1768395959399,0.76587142,933.04,932.11,0.18649118]
[1768395959602,0.76587142,933.03,932.11,0.18649118]
[1768395959799,0.76587142,933.02,932.11,0.18649118]
[1768395960003,0.915,933.05,932.11,0.18649118]
[1768395960004,0.76587142,933.01,932.11,0.18649118]
[1768395960199,0.76587142,933.0,932.11,0.18649118]
[1768395960499,0.76588414,932.99,932.11,0.18649118]
[1768395960699,0.76588414,932.98,932.11,0.18649118]
[1768395960901,0.76588414,932.97,932.11,0.18649118]
[1768395961099,0.76588414,932.96,931.33,2.628152]
[1768395961400,0.76588414,932.95,931.97,0.18656066]
[1768395961600,0.76588414,932.95,931.1,3.6794129]
[1768395961601,0.76588414,932.94,931.27,2.628152]
[1768395961906,0.76588414,932.93,931.97,0.18656666]
[1768395962101,0.76588414,932.92,931.27,2.628152]
[1768395962305,0.76588414,932.91,931.27,2.628152]
[1768395962605,0.76588414,932.91,930.93,3.6794129]
[1768395962606,0.76588414,932.9,931.97,0.18657066]
[1768395962805,0.76588414,932.89,931.26,2.628152]
[1768395963002,0.915,933.05,931.26,2.628152]
[1768395963003,0.76588414,932.88,931.97,0.18657267]
[1768395963306,0.76588414,932.87,931.26,2.628152]
[1768395963506,0.76588414,932.86,931.97,0.18657367]
[1768395963700,0.76588414,932.85,931.26,2.628152]
[1768395963902,0.76588414,932.84,931.26,2.628152]
[1768395964104,0.76588414,932.83,931.97,0.18657467]
[1768395964306,0.76588414,932.82,931.26,2.628152]
[1768395964606,0.76588414,932.81,931.97,0.18657617]
[1768395964803,0.76588414,932.8,931.25,2.628152]
[1768395965008,0.76588414,932.79,931.25,2.628152]
[1768395965207,0.76588414,932.78,931.97,0.18657767]
[1768395965502,0.76588414,932.77,931.25,2.628152]
[1768395965704,0.76588414,932.76,931.97,0.18657917]
[1768395965904,0.76588414,932.75,931.25,2.628152]
[1768395966106,0.915,933.05,931.97,0.18658017]
[1768395966305,0.76545508,933.04,931.97,0.18658017]
[1768395966608,0.76545508,933.03,931.25,2.628152]
[1768395966903,0.76545508,933.02,931.24,2.628152]
[1768395967108,0.76545508,933.01,931.24,2.628152]
[1768395967408,0.76545508,933.0,931.69,0.18656666]
[1768395967607,0.76545508,932.99,931.69,0.18656666]
[1768395967902,0.76545508,932.98,931.69,0.18656666]
[1768395968102,0.76545508,932.97,931.69,0.18656666]
[1768395968305,0.76545508,932.96,931.69,0.18656666]
[1768395968506,0.76545508,932.95,931.69,0.18656666]
[1768395968708,0.76545508,932.94,931.69,0.18656666]
[1768395968904,0.76545508,932.93,931.69,0.18656666]
[1768395969104,0.76545508,932.92,931.69,0.18656666]
[1768395969304,0.76545508,932.91,931.69,0.18656666]
[1768395969505,0.76545508,932.9,931.69,0.18656666]
[1768395969710,0.76545508,932.89,931.69,0.18656666]
[1768395969906,0.76545508,932.88,931.69,0.18656666]
[1768395970109,0.76545508,932.87,931.69,0.18656666]
[1768395970306,0.76545508,932.86,931.69,0.18656666]
[1768395970506,0.76545508,932.85,931.69,0.18656666]
[1768395970711,0.76545508,932.84,931.69,0.18656666]
[1768395970909,0.76545508,932.83,931.69,0.18656666]
[1768395971106,0.76545508,932.82,931.69,0.18656666]
[1768395971310,0.76545508,932.81,931.69,0.18656666]
[1768395971511,0.76545508,932.8,931.69,0.18656666]
[1768395971708,0.76545508,932.79,931.69,0.18656666]
[1768395971909,0.76545508,932.78,931.69,0.18656666]
[1768395972112,0.76545508,932.77,931.69,0.18656666]
[1768395972308,0.76545508,932.76,931.69,0.18656666]
[1768395972510,0.76545508,932.75,931.69,0.18656666]
[1768395972808,0.76545508,932.74,931.69,0.18656666]
[1768395973013,0.76545508,932.73,931.69,0.18656666]
[1768395973214,0.76545508,932.72,931.69,0.18656666]
[1768395973409,0.915,933.05,931.69,0.18656666]
[1768395973608,0.76868429,933.04,931.69,0.18656666]
[1768395973813,0.76868429,933.03,931.69,0.18656666]
[1768395974014,0.76868429,933.02,931.69,0.18656666]
[1768395974212,0.76868429,933.01,931.69,0.18656666]
[1768395974511,0.76868429,933.0,931.69,0.18656666]
[1768395974717,0.915,933.05,931.69,0.18656666]
[1768395974913,0.76869181,933.04,931.69,0.18656666]
[1768395975115,0.76869181,933.03,931.69,0.18656666]
[1768395975318,0.76869181,933.02,931.69,0.18656666]
[1768395975519,0.76869181,933.01,931.69,0.18656666]
[1768395975716,0.76869539,933.0,931.69,0.18656666]
[1768395975919,0.76869539,932.99,931.69,0.18656666]
[1768395976121,0.76869539,932.98,931.69,0.18656666]
[1768395976315,0.76869539,932.97,931.69,0.18656666]
[1768395976520,0.915,933.05,931.69,0.18656666]
[1768395976722,0.76876791,933.04,931.69,0.18656666]
[1768395976922,0.76876791,933.03,931.69,0.18656666]
[1768395977122,0.76876791,933.02,931.69,0.18656666]
[1768395977422,0.76876791,933.01,931.69,0.18656666]
[1768395977621,0.76876791,933.0,931.69,0.18656666]
[1768395977917,0.76876791,932.99,931.69,0.18656666]
[1768395978121,0.76876791,932.98,931.69,0.18656666]
[1768395978319,0.76876791,932.97,931.69,0.18656666]
[1768395978520,0.76876791,932.96,931.69,0.18656666]
[1768395978724,0.915,933.05,931.69,0.18656666]
[1768395978921,0.76893828,933.04,931.69,0.18656666]
[1768395979131,0.76893828,933.03,931.69,0.18656666]
[1768395979322,0.76893828,933.02,931.69,0.18656666]
[1768395979527,0.76893828,933.01,931.69,0.18656666]
[1768395979728,0.76893828,933.0,931.69,0.18656666]
[1768395979926,0.76893828,932.99,931.69,0.18656666]
[1768395980128,0.76893828,932.98,931.69,0.18656666]
[1768395980329,0.76893828,932.97,931.69,0.18656666]
[1768395980525,0.76893828,932.96,931.69,0.18656666]
[1768395980726,0.76893828,932.95,931.69,0.18656666]
[1768395980926,0.915,933.05,931.69,0.18656666]
[1768395981230,0.76912659,933.04,931.69,0.18656666]
[1768395981527,0.76912659,933.03,931.69,0.18656666]
[1768395981727,0.76912659,933.02,931.69,0.18656666]
[1768395981931,0.76912659,933.01,931.69,0.18656666]
[1768395982128,0.76912659,933.0,931.69,0.18656666]
[1768395982428,0.76912659,932.99,931.69,0.18656666]
[1768395982629,0.76912659,932.98,931.69,0.18656666]
[1768395982930,0.76912659,932.97,931.69,0.18656666]
[1768395983128,0.76912659,932.96,931.69,0.18656666]
[1768395983327,0.76912659,932.95,931.69,0.18656666]
[1768395983627,0.76912659,932.94,931.69,0.18656666]
[1768395983831,0.76912659,932.93,931.69,0.18656666]
[1768395984029,0.915,933.05,931.69,0.18656666]
[1768395984230,0.76929884,933.04,931.69,0.18656666]
[1768395984431,0.76941809,933.03,931.69,0.18656666]
[1768395984633,0.76941809,933.02,931.69,0.18656666]
[1768395984831,0.76941809,933.01,931.69,0.18656666]
[1768395985132,0.76941809,933.0,931.69,0.18656666]
[1768395985328,0.76941809,932.99,931.69,0.18656666]
[1768395985530,0.76941809,932.98,931.69,0.18656666]
[1768395985731,0.76941809,932.97,931.69,0.18656666]
[1768395985930,0.76941809,932.96,931.69,0.18656666]
[1768395986131,0.76941809,932.95,931.69,0.18656666]
[1768395986329,0.76941809,932.94,931.69,0.18656666]
[1768395986529,0.76941809,932.93,931.69,0.18656666]
[1768395986731,0.76941809,932.92,931.69,0.18656666]
[1768395986935,0.76941809,932.91,931.69,0.18656666]
[1768395987136,0.915,933.05,931.69,0.18656666]
[1768395987430,0.76957297,933.04,931.69,0.18656666]
[1768395987636,0.76957297,933.03,931.69,0.18656666]
[1768395987837,0.76957297,933.02,931.69,0.18656666]
[1768395988033,0.76957297,933.01,931.69,0.18656666]
[1768395988240,0.76957297,933.0,931.69,0.18656666]
[1768395988438,0.76957297,932.99,931.69,0.18656666]
[1768395988635,0.76957297,932.98,931.69,0.18656666]
[1768395988836,0.76957297,932.97,931.69,0.18656666]
[1768395989035,0.76957297,932.96,931.69,0.18656666]
[1768395989238,0.76957297,932.95,931.69,0.18656666]
[1768395989436,0.76957297,932.94,931.69,0.18656666]
[1768395989637,0.76957297,932.93,931.69,0.18656666]
[1768395989838,0.76957297,932.92,931.69,0.18656666]
[1768395990038,0.76957297,932.91,931.69,0.18656666]
[1768395990247,0.915,933.05,931.69,0.18656666]
[1768395990538,0.76949189,933.04,931.69,0.18656666]
[1768395990738,0.76949189,933.03,931.69,0.18656666]
[1768395991041,0.76949189,933.02,931.69,0.18656666]
[1768395991238,0.76949189,933.01,931.69,0.18656666]
[1768395991440,0.76949189,933.0,931.69,0.18656666]
[1768395991635,0.76949189,932.99,931.69,0.18656666]
[1768395991849,0.76949189,932.98,931.69,0.18656666]
[1768395992138,0.76949189,932.97,931.69,0.18656666]
[1768395992439,0.76949189,932.96,931.69,0.18656666]
[1768395992641,0.76949189,932.95,931.69,0.18656666]
[1768395992839,0.76949189,932.94,931.69,0.18656666]
[1768395993044,0.76949189,932.93,931.69,0.18656666]
[1768395993240,0.76949189,932.92,931.69,0.18656666]
[1768395993441,0.915,933.05,931.69,0.18656666]
[1768395993641,0.76953214,933.04,931.69,0.18656666]
[1768395993844,0.76953214,933.03,931.69,0.18656666]
[1768395994148,0.76953214,933.02,931.69,0.18656666]
[1768395994348,0.76953214,933.01,931.69,0.18656666]
[1768395994550,0.76953214,933.0,931.69,0.18656666]
[1768395994743,0.76953214,932.99,931.69,0.18656666]
[1768395994950,0.76953214,932.98,931.69,0.18656666]
[1768395995247,0.76953214,932.97,931.69,0.18656666]
[1768395995441,0.76953214,932.96,931.69,0.18656666]
[1768395995648,0.76953214,932.95,931.69,0.18656666]
[1768395995848,0.76953214,932.94,931.69,0.18656666]
[1768395996043,0.76953214,932.93,931.69,0.18656666]
[1768395996249,0.76953214,932.92,931.69,0.18656666]
[1768395996548,0.18641675,934.08,931.69,0.18656666]
[1768395996748,0.76949224,934.07,931.69,0.18656666]
[1768395996944,0.01106034,933.85,931.69,0.18656666]
[1768395997148,0.76949224,933.84,931.69,0.18656666]
[1768395997444,0.76947926,933.83,931.69,0.18656666]
[1768395997645,0.76947926,933.82,931.69,0.18656666]
[1768395997845,0.76947926,933.81,931.69,0.18656666]
[1768395998143,0.76947926,933.8,931.69,0.18656666]
[1768395998343,0.76947926,933.79,931.69,0.18656666]
[1768395998545,0.76947926,933.78,931.69,0.18656666]
[1768395998746,0.76947926,933.77,931.69,0.18656666]
[1768395998944,0.76947926,933.76,931.69,0.18656666]
[1768395999146,0.76947926,933.75,931.69,0.18656666]
[1768395999348,0.76947926,933.74,931.69,0.18656666]
[1768395999647,0.76947926,933.73,931.69,0.18656666]
[1768395999846,0.76947926,933.72,931.69,0.18656666]
[1768396000048,0.76947926,933.71,931.69,0.18656666]
[1768396000246,0.76947926,933.7,931.69,0.18656666]
[1768396000446,0.76947926,933.69,931.69,0.18656666]
[1768396000644,0.76947926,933.68,931.69,0.18656666]
[1768396000848,0.76947926,933.67,931.69,0.18656666]
[1768396001047,0.76947926,933.66,931.69,0.18656666]
[1768396001243,0.76947926,933.65,931.69,0.18656666]
[1768396001449,0.76947926,933.64,931.69,0.18656666]
[1768396001646,0.76947926,933.63,931.69,0.18656666]
[1768396001847,0.76947926,933.62,931.69,0.18656666]
[1768396002049,0.76947926,933.61,931.69,0.18656666]
[1768396002246,0.76947926,933.6,931.69,0.18656666]
[1768396002548,0.76947926,933.59,931.69,0.18656666]
[1768396002849,0.76947926,933.58,931.69,0.18656666]
[1768396003049,0.76947926,933.57,931.69,0.18656666]
[1768396003348,0.76947926,933.56,931.69,0.18656666]
[1768396003546,0.76947926,933.55,931.69,0.18656666]
[1768396003747,0.76947926,933.54,931.69,0.18656666]
[1768396003946,0.76947926,933.53,931.69,0.18656666]
[1768396004148,0.76947926,933.52,931.69,0.18656666]
[1768396004344,0.76947926,933.51,931.69,0.18656666]
[1768396004546,1.045,933.71,931.69,0.18656666]
[1768396004747,0.7693282,933.7,931.69,0.18656666]
[1768396004948,0.7693282,933.69,931.69,0.18656666]
[1768396005250,0.7693282,933.68,931.69,0.18656666]
[1768396005451,0.7693282,933.67,931.69,0.18656666]
[1768396005649,0.7693282,933.66,931.69,0.18656666]
[1768396005851,0.7693282,933.65,931.69,0.18656666]
[1768396006048,0.7693282,933.64,931.69,0.18656666]
[1768396006252,0.7693282,933.63,931.69,0.18656666]
[1768396006449,0.7693282,933.62,931.69,0.18656666]
[1768396006654,0.7693282,933.61,931.69,0.18656666]
[1768396006848,0.7693282,933.6,931.69,0.18656666]
[1768396007048,0.7693282,933.59,931.69,0.18656666]
[1768396007251,0.7693282,933.58,931.69,0.18656666]
[1768396007449,0.7693282,933.57,931.69,0.18656666]
[1768396007750,0.7693282,933.56,931.69,0.18656666]
[1768396007952,0.7693282,933.55,931.69,0.18656666]
[1768396008150,0.7693282,933.54,931.69,0.18656666]
[1768396008350,0.7693282,933.53,931.69,0.18656666]
[1768396008552,0.7693282,933.52,931.69,0.18656666]
[1768396008752,0.7693282,933.51,931.69,0.18656666]
[1768396008950,0.7693282,933.5,931.69,0.18656666]
[1768396009154,0.7693282,933.49,931.69,0.18656666]
[1768396009355,0.7693282,933.48,931.69,0.18656666]
[1768396009655,0.7693282,933.47,931.69,0.18656666]
[1768396009855,0.7693282,933.46,931.69,0.18656666]
[1768396010052,0.7693282,933.45,931.69,0.18656666]
[1768396010254,0.7693282,933.44,931.69,0.18656666]
[1768396010454,0.7693282,933.43,931.69,0.18656666]
[1768396010654,0.7693282,933.42,931.69,0.18656666]
[1768396010854,0.7693282,933.41,931.69,0.18656666]
[1768396011054,0.7693282,933.4,931.69,0.18656666]
[1768396011256,0.7693282,933.39,931.69,0.18656666]
[1768396011456,0.7693282,933.38,931.69,0.18656666]
[1768396011672,0.7693282,933.37,931.69,0.18656666]
[1768396011860,0.7693282,933.36,931.69,0.18656666]
[1768396012061,0.76970553,933.35,931.69,0.18656666]
[1768396012356,0.76970553,933.34,931.69,0.18656666]
[1768396012561,0.76970553,933.33,931.69,0.18656666]
[1768396012763,0.76970553,933.32,931.69,0.18656666]
[1768396012956,0.76970553,933.31,931.69,0.18656666]
[1768396013160,0.76970553,933.3,931.69,0.18656666]
[1768396013359,0.76970553,933.29,931.69,0.18656666]
[1768396013658,0.76970553,933.28,931.69,0.18656666]
[1768396013856,0.76970553,933.27,931.69,0.18656666]
[1768396014062,0.76970553,933.26,931.69,0.18656666]
[1768396014257,0.76989296,933.25,931.69,0.18656666]
[1768396014558,0.76989296,933.24,931.69,0.18656666]
[1768396014762,0.76989296,933.23,931.69,0.18656666]
[1768396014969,0.76989296,933.22,931.69,0.18656666]
[1768396015259,0.76989296,933.21,931.69,0.18656666]
[1768396015463,0.76989296,933.2,931.69,0.18656666]
[1768396015659,0.76989296,933.19,931.69,0.18656666]
[1768396015861,0.76989296,933.18,931.69,0.18656666]
[1768396016059,0.76989296,933.17,931.69,0.18656666]
[1768396016260,0.76989296,933.16,931.69,0.18656666]
[1768396016560,0.76989296,933.15,931.69,0.18656666]
[1768396016763,0.76989296,933.14,931.69,0.18656666]
[1768396016975,0.76989296,933.13,931.69,0.18656666]
[1768396017159,0.76989296,933.12,931.69,0.18656666]
[1768396017362,0.76989296,933.11,931.69,0.18656666]
[1768396017659,0.76989296,933.1,931.69,0.18656666]
[1768396017863,0.76989296,933.09,931.69,0.18656666]
[1768396018059,0.76989296,933.08,931.69,0.18656666]
[1768396018272,0.76989296,933.07,931.69,0.18656666]
[1768396018566,0.76989296,933.06,931.69,0.18656666]
[1768396018764,0.76989296,933.05,931.69,0.18656666]
[1768396018961,0.76989296,933.04,931.69,0.18656666]
[1768396019165,0.76989296,933.03,931.69,0.18656666]
[1768396019473,0.76989296,933.02,931.69,0.18656666]
[1768396019666,1.045,933.71,931.69,0.18656666]
[1768396022973,0.77176088,933.7,931.69,0.18656666]
[1768396023173,0.77176088,933.69,931.69,0.18656666]
[1768396023366,0.77176088,933.68,931.69,0.18656666]
[1768396023670,0.77176088,933.67,931.69,0.18656666]
[1768396023868,1.045,933.71,931.69,0.18656666]
[1768396023869,0.77176088,933.66,931.69,0.18656666]
[1768396024066,0.77176088,933.65,931.69,0.18656666]
[1768396024271,0.77176088,933.64,931.69,0.18656666]
[1768396024469,0.77176088,933.63,931.69,0.18656666]
[1768396024765,0.77176088,933.62,931.69,0.18656666]
[1768396024970,0.77176088,933.61,931.69,0.18656666]
[1768396025167,0.77176088,933.6,931.69,0.18656666]
[1768396025474,0.77176088,933.59,931.69,0.18656666]
[1768396025673,0.77176088,933.58,931.69,0.18656666]
[1768396025873,0.77176088,933.57,931.69,0.18656666]
[1768396026172,0.77176088,933.56,931.69,0.18656666]
[1768396026373,0.77176088,933.55,931.69,0.18656666]
[1768396026568,0.77176088,933.54,931.69,0.18656666]
[1768396026876,0.77176088,933.53,931.69,0.18656666]
[1768396027166,0.77176088,933.52,931.69,0.18656666]
[1768396027379,0.77176088,933.51,931.69,0.18656666]
[1768396027571,0.77176088,933.5,931.69,0.18656666]
[1768396027782,0.77176088,933.49,931.69,0.18656666]
[1768396027980,0.77176088,933.48,931.69,0.18656666]
[1768396028270,0.77176088,933.47,931.69,0.18656666]
[1768396028474,0.77176088,933.46,931.69,0.18656666]
[1768396028676,0.77176088,933.45,931.69,0.18656666]
[1768396028974,0.77176088,933.44,931.69,0.18656666]
[1768396029172,0.77176088,933.43,931.69,0.18656666]
[1768396029473,0.77176088,933.42,931.69,0.18656666]
[1768396029672,0.77176088,933.41,931.71,2.628152]
[1768396029870,0.77176088,933.4,931.71,2.628152]
[1768396030180,0.77176088,933.39,931.72,2.628152]
[1768396030390,0.77176088,933.38,931.72,2.628152]
[1768396030572,0.77176088,933.37,931.77,2.628152]
[1768396030776,0.77176088,933.36,931.77,2.628152]
[1768396030978,0.77176088,933.35,931.77,2.628152]
[1768396031172,0.77176088,933.34,931.82,2.628152]
[1768396031376,0.77176088,933.33,931.82,2.628152]
[1768396031673,0.77176088,933.32,931.82,2.628152]
[1768396031872,0.77176088,933.31,931.82,2.628152]
[1768396032077,0.77176088,933.3,931.82,2.628152]
[1768396032281,0.77176088,933.29,931.81,2.628152]
[1768396032473,0.77176088,933.28,931.81,2.628152]
[1768396032677,0.77176088,933.27,931.81,2.628152]
[1768396032878,0.77176088,933.26,931.81,2.628152]
[1768396033173,1.045,933.71,931.81,2.628152]
[1768396033174,0.77176088,933.25,931.81,2.628152]
[1768396033373,0.77176088,933.24,931.79,2.628152]
[1768396033579,0.77176088,933.23,931.79,2.628152]
[1768396033775,0.77176088,933.22,931.79,2.628152]
[1768396033978,0.77176088,933.21,931.79,2.628152]
[1768396034275,0.77176088,933.2,931.78,2.628152]
[1768396034478,0.77176088,933.19,931.78,2.628152]
[1768396034775,0.76865632,933.18,931.8,2.628152]
[1768396034979,1.045,933.71,931.8,2.628152]
[1768396035176,0.76865507,933.7,931.8,2.628152]
[1768396035480,0.76865507,933.69,931.82,2.628152]
[1768396035776,0.76865507,933.68,932.02,2.628152]
[1768396035981,0.76865507,933.67,932.02,2.628152]
[1768396036280,0.76865507,933.66,932.02,2.628152]
[1768396036474,0.76865507,933.65,932.0,2.628152]
[1768396036679,0.76865507,933.64,932.0,2.628152]
[1768396036876,0.76865507,933.63,932.04,2.628152]
[1768396037079,0.76865507,933.62,932.04,2.628152]
[1768396037280,0.76865507,933.61,932.04,2.628152]
[1768396037477,0.76865507,933.6,932.01,2.628152]
[1768396037677,0.76865507,933.59,932.01,2.628152]
[1768396037879,0.76865507,933.58,932.01,2.628152]
[1768396038080,0.76865507,933.57,932.01,2.628152]
[1768396038278,1.045,933.71,932.01,2.628152]
[1768396038478,0.76630966,933.7,932.02,2.628152]
[1768396038681,0.76630966,933.69,932.02,2.628152]
[1768396038979,0.76630966,933.69,931.76,3.6794129]
[1768396038980,1.045,933.71,932.12,2.628152]
[1768396039178,0.76624222,933.7,932.12,2.628152]
[1768396039382,1.045,933.71,932.12,2.628152]
[1768396039584,1.045,933.71,932.08,2.628152]
[1768396040584,1.045,933.71,932.05,2.628152]
[1768396041582,1.045,933.71,932.02,2.628152]
[1768396042583,1.045,933.71,931.99,2.628152]
[1768396043792,1.045,933.71,931.97,2.628152]
[1768396044291,1.045,933.71,931.95,2.628152]
[1768396044886,1.045,933.71,931.94,2.628152]
[1768396045292,1.045,933.71,931.95,2.628152]
[1768396046192,1.045,933.71,931.93,2.628152]
[1768396047289,1.045,933.71,931.92,2.628152]
[1768396048493,1.045,933.71,931.91,2.628152]
[1768396049491,1.045,933.71,931.9,2.628152]
[1768396050495,1.045,933.71,931.95,2.628152]
[1768396051394,1.045,933.71,931.69,0.18656666]
[1768396051395,0.00821341,934.29,931.94,2.628152]
[1768396051592,0.76219778,934.28,931.94,2.628152]
[1768396051792,0.76219778,934.27,931.94,2.628152]
[1768396051996,0.76219778,934.26,931.94,2.628152]
[1768396052299,0.76219778,934.25,931.94,2.628152]
[1768396052496,0.76219778,934.24,931.93,2.628152]
[1768396052695,0.76219778,934.23,931.93,2.628152]
[1768396052897,0.76219778,934.22,931.93,2.628152]
[1768396053098,0.76219778,934.21,931.93,2.628152]
[1768396053301,0.76219778,934.2,931.93,2.628152]
[1768396053498,0.76219778,934.19,931.92,2.628152]
[1768396053798,0.76219778,934.18,931.92,2.628152]
[1768396054100,0.76219778,934.17,931.92,2.628152]
[1768396054297,0.76219778,934.16,931.92,2.628152]
[1768396054596,0.76219778,934.15,931.92,2.628152]
[1768396054797,0.76219778,934.14,931.92,2.628152]
[1768396055099,0.76219778,934.13,931.92,2.628152]
[1768396055398,0.76219778,934.12,931.92,2.628152]
[1768396055595,0.76219778,934.11,931.91,2.628152]
[1768396055795,1.086,934.18,931.91,2.628152]
[1768396055796,0.76219778,934.1,931.91,2.628152]
[1768396055996,0.76219778,934.09,931.91,2.628152]
[1768396056196,0.76219778,934.08,931.91,2.628152]
[1768396056401,0.76219778,934.07,931.91,2.628152]
[1768396056601,0.76198105,934.06,931.91,2.628152]
[1768396056802,0.76198105,934.05,931.91,2.628152]
[1768396057001,0.76198105,934.04,931.91,2.628152]
[1768396057201,0.76198105,934.03,931.91,2.628152]
[1768396057398,0.76198105,934.02,931.91,2.628152]
[1768396057602,0.76198105,934.01,931.9,2.628152]
[1768396057802,0.76198105,934.0,931.9,2.628152]
[1768396058002,0.76198105,933.99,931.9,2.628152]
[1768396058197,0.76198105,933.98,931.9,2.628152]
[1768396058401,0.76198105,933.97,931.9,2.628152]
[1768396058598,1.086,934.18,931.9,2.628152]
[1768396058800,0.76211131,934.17,931.9,2.628152]
[1768396059098,1.086,934.18,931.9,2.628152]
[1768396059099,0.76211131,934.16,931.9,2.628152]
[1768396059303,0.76211131,934.15,931.9,2.628152]
[1768396059603,0.76211131,934.14,931.9,2.628152]
[1768396059804,0.76211131,934.13,931.9,2.628152]
[1768396060004,0.76211131,934.12,931.9,2.628152]
[1768396060210,0.76211131,934.11,931.9,2.628152]
[1768396060411,0.76211131,934.1,931.9,2.628152]
[1768396060601,0.76211131,934.09,931.9,2.628152]
[1768396060802,0.76211131,934.08,931.88,2.628152]
[1768396061105,0.76211131,934.07,931.88,2.628152]
[1768396061310,0.76211131,934.06,931.88,2.628152]
[1768396061606,0.76211131,934.05,931.88,2.628152]
[1768396061904,0.76211131,934.04,931.86,2.628152]
[1768396062113,0.76211131,934.03,931.86,2.628152]
[1768396062406,0.76211131,934.02,931.86,2.628152]
[1768396062604,0.76211131,934.01,931.86,2.628152]
[1768396062814,0.76211131,934.0,931.86,2.628152]
[1768396063013,0.76211131,933.99,931.86,2.628152]
[1768396063211,0.76211131,933.98,931.86,2.628152]
[1768396063412,0.76211131,933.97,931.86,2.628152]
[1768396063616,0.76211131,933.96,931.86,2.628152]
[1768396063809,0.76211131,933.95,931.86,2.628152]
[1768396064114,0.76211131,933.94,931.86,2.628152]
[1768396064310,0.76211131,933.93,931.86,2.628152]
[1768396064612,0.76211131,933.93,931.69,0.18656666]
[1768396064613,0.76211131,933.92,931.83,2.628152]
[1768396064806,0.76211131,933.91,931.83,2.628152]
[1768396065105,0.76211131,933.9,931.75,2.628152]
[1768396065306,0.76211131,933.89,931.75,2.628152]
[1768396065506,0.76211131,933.88,931.75,2.628152]
[1768396065706,0.76211131,933.87,931.75,2.628152]
[1768396065915,0.76211131,933.86,931.75,2.628152]
[1768396066115,0.76211131,933.85,931.75,2.628152]
[1768396066309,0.76211131,933.84,931.75,2.628152]
[1768396066508,1.086,934.18,931.69,0.18656666]
[1768396066509,0.76211131,933.83,931.76,2.628152]
[1768396066706,0.76211131,933.82,931.76,2.628152]
[1768396066911,0.76211131,933.81,931.76,2.628152]
[1768396067209,1.086,934.18,931.76,2.628152]
[1768396067409,0.7627615,934.17,931.76,2.628152]
[1768396067608,0.7627615,934.16,931.78,2.628152]
[1768396067809,0.7627615,934.15,931.78,2.628152]
[1768396068009,0.7627615,934.14,931.78,2.628152]
[1768396068208,0.7627615,934.13,931.78,2.628152]
[1768396068408,0.7627615,934.12,931.78,2.628152]
[1768396068609,0.7627615,934.11,931.8,2.628152]
[1768396068908,0.7627615,934.1,931.8,2.628152]
[1768396069110,0.7627615,934.09,931.8,2.628152]
[1768396069309,0.7627615,934.08,931.8,2.628152]
[1768396069607,0.7627615,934.07,931.82,2.628152]
[1768396069809,1.086,934.18,931.82,2.628152]
[1768396069810,0.7627615,934.06,931.82,2.628152]